Cogmind - Beta 15 @@@ ROGUE MODE // 2025.09.21 @ 02:46:33 Player: c4-BRK Result: Destroyed by L-31 Rogue with Katana Performance ------------- Evolutions (2) 1000 Regions Visited (6) 1200 Robots Destroyed (58) 290 Value Destroyed (1513) 1513 Prototype IDs (4) 80 Alien Tech Used (0) 0 Bonus (33) 33 TOTAL SCORE: 4116 Bonus ------- Follower Combat Kills 33 Cogmind --------- Core Integrity 0/550 Matter 450/450 Energy 287/310 System Corruption 7% Temperature Cool (0) Movement Treading (240) Ox1 Location -8/Storage Parts ------- > --- POWER (2) -------- Ion Engine Light Nuclear Core > --- PROPULSION (3) --- Light Treads Aluminum Leg > --- UTILITY (4) ------ Medium Storage Unit Compact Matter Pod Advanced Visual Processing Unit Light Armor Plating > --- WEAPON (2) ------- Beam Rifle Particle Gun > --- INVENTORY (10) --- Ion Engine Light Treads Improved Treads Mini Grenade Launcher Improved Grenade Launcher Remote Datajack Peak State ------------ > --- POWER ------------ Heavy Ion Engine Heavy Ion Engine > --- PROPULSION ------- Aluminum Leg Carbon-fiber Leg Carbon-fiber Leg > --- UTILITY ---------- Improved Heat Sink Medium Storage Unit > --- WEAPON ----------- Particle Gun Remote Datajack > --- INVENTORY -------- Mini Grenade Launcher [Rating: 23] Favorites ----------- Power Heavy Ion Engine Engine Heavy Ion Engine Power Core Light Nuclear Core Propulsion Light Treads Treads Light Treads Leg Aluminum Leg Wheel Compact Wheel Utility Small Storage Unit Device Heat Sink Storage Small Storage Unit Processor Advanced Visual Processing Unit Protection Light Armor Plating Weapon Heavy Assault Rifle Energy Gun Beam Rifle Energy Cannon Advanced Beam Cannon Ballistic Gun Heavy Assault Rifle Ballistic Cannon Advanced Assault Cannon Launcher Grenade Launcher Special Weapon Remote Datajack Build | -11 -10 -10 -9 -9 -8 -8 ------- Run | Yrd Mat Min Mat Min Mat Sto Slots Evolved 4 | . . . 2 . 2 . Power 1 | . . . . . 1 . Propulsion 1 | . . . . . 1 . Utility 2 | . . . 2 . . . Weapon . | . . . . . . . Parts Attached 56 | 6 1 3 21 1 16 8 Power 11 | 1 . 1 4 . 3 2 Engine 10 | 1 . 1 4 . 3 1 Core 1 | . . . . . . 1 Reactor . | . . . . . . . Propulsion 12 | 2 . 1 4 . 4 1 Treads 4 | . . . 2 . 1 1 Leg 5 | . . . 2 . 3 . Wheel 3 | 2 . 1 . . . . Hover . | . . . . . . . Flight . | . . . . . . . Utility 14 | 1 . 1 5 1 4 2 Device 5 | . . . 2 1 2 . Storage 4 | 1 . . 1 . 1 1 Processor 1 | . . . . . 1 . Hackware . | . . . . . . . Protection 4 | . . 1 2 . . 1 Artifact . | . . . . . . . Weapon 19 | 2 1 . 8 . 5 3 Energy Gun 9 | . 1 . 3 . 2 3 Energy Cannon 1 | . . . 1 . . . Ballistic Gun 6 | 2 . . 3 . 1 . Ballistic Cannon 1 | . . . . . 1 . Launcher 1 | . . . 1 . . . Special Weapon 1 | . . . . . 1 . Impact Weapon . | . . . . . . . Slashing Weapon . | . . . . . . . Piercing Weapon . | . . . . . . . Special Melee Weapon . | . . . . . . . Unidentified Prototypes 4 | . . . 3 . 1 . Corrupted Parts 1 | . . . . . . 1 System Corruption 6 | . . . . . . 6 Parts Lost 36 | . 1 . 9 1 18 7 Power 6 | . 1 . 1 . 2 2 Propulsion 9 | . . . 4 . 4 1 Utility 8 | . . . 2 1 5 . Weapon 13 | . . . 2 . 7 4 Highest Loss Streak 7 | . 1 . 7 1 6 7 To Critical Strikes . | . . . . . . . Average Backups 4 | . 1 2 3 7 4 6 Power . | . . . 1 2 . . Propulsion . | . . . . . . 2 Utility . | . . . . . . . Weapon 2 | . 1 2 2 5 2 2 Tool/Special . | . . . . . . . Unused Backups 6 | . . . 1 . . 5 Power 2 | . . . 1 . . 1 Propulsion 2 | . . . . . . 2 Utility . | . . . . . . . Weapon 2 | . . . . . . 2 Tool/Special . | . . . . . . . Average Slot Usage (%) 80 | . 85 97 78 96 67 81 Engine 13 | . 14 12 9 11 17 10 Treads 5 | . . . 3 22 7 6 Leg 7 | . . . 9 . 9 10 Wheel 7 | . 28 28 6 . . . Device 4 | . . . 3 16 5 3 Storage 11 | . 14 14 14 11 7 13 Processor 2 | . . . . . 1 9 Protection 6 | . . 12 11 13 . 6 Energy Gun 10 | . 9 14 6 11 8 14 Ballistic Gun 8 | . 18 14 13 11 4 1 Peak Build Rating 23 | 6 6 7 14 18 23 23 Average Rating 13 | 4 5 6 10 15 17 18 On Entrance 10 | . 6 5 7 13 18 23 Naked Turns . | . . . . . . . Heaviest Build 35 | 12 12 13 24 27 35 32 Greatest Support 60 | 32 32 32 40 40 60 34 Greatest Overweight (x) 6 | . . . 6 . 6 1 Average Overweight (x) . | . . . . . . . Largest Inventory Capacity 10 | 8 8 8 8 8 10 10 Average Capacity 8 | 6 8 8 8 8 8 10 Most Carried 10 | 4 2 4 7 8 10 9 Average Carried 4 | . 1 2 3 7 4 6 Final Capacity 10 | 8 8 8 8 8 10 10 Final Carried 9 | . 2 3 7 8 9 6 Class Distribution -------------------- 53% | Scavenger-Mutant 39% | Mutant 6% | Commander-Mutant Dominant Class ---------------- Mutant | -10/Materials Mutant | -10/Mines Scavenger-Mutant | -9/Materials Scavenger-Mutant | -9/Mines Scavenger-Mutant | -8/Materials Scavenger-Mutant | -8/Storage Resources | -11 -10 -10 -9 -9 -8 -8 ----------- Run | Yrd Mat Min Mat Min Mat Sto Matter Collected 1711 | 260 18 62 431 140 528 272 Remotely . | . . . . . . . Salvage Created 2011 | . 36 43 784 228 682 238 Parts 116 | . 2 3 54 13 32 12 Haulers Intercepted 5 | . . . 1 . 4 . Recyclers Shooed 2 | . . . 2 . . . Parts Field Recycled . | . . . . . . . Retrieved Matter . | . . . . . . . Parts Self-Destructed . | . . . . . . . Prevented . | . . . . . . . Kills | -11 -10 -10 -9 -9 -8 -8 ------- Run | Yrd Mat Min Mat Min Mat Sto Combat Hostiles Destroyed 43 | . 1 1 15 6 16 4 Guns 36 | . 1 1 15 6 9 4 Cannons 4 | . . . . . 4 . AOE 3 | . . . . . 3 . Classes Destroyed 9 | . 2 1 4 1 1 . Worker 4 | . . 1 1 . 2 . Tunneler 1 | . . . . . 1 . Hauler 5 | . . . 1 . 4 . Recycler 3 | . . . 2 1 . . Watcher 2 | . 1 . . . 1 . Swarmer 15 | . 1 1 6 4 3 . Grunt 16 | . . . 3 1 10 2 Brawler 3 | . . . . 1 2 . Sentry 9 | . . . 6 . 1 2 Best Kill Streak 8 | . 2 1 8 4 7 3 Combat Bots Only 6 | . 1 1 6 4 6 3 Max Kills in Single Turn 2 | . 1 1 2 2 1 2 Gunslinging 1 | . . . . 1 . 1 Exploded 1 | . . . . . 1 . Melee . | . . . . . . . Uniques/NPCs Destroyed . | . . . . . . . Combat | -11 -10 -10 -9 -9 -8 -8 -------- Run | Yrd Mat Min Mat Min Mat Sto Hostile Shots Fired 353 | . 23 4 104 33 134 55 Missed 87 | . 7 1 16 12 40 11 Hits 266 | . 16 3 88 21 94 44 Melee 14 | . . . 4 3 5 2 Projectile 252 | . 16 3 84 18 89 42 Critical Strikes 16 | . . . 2 2 9 3 Damage Taken 3956 | . 135 23 1167 242 1486 903 Core 999 | . 35 . 362 24 244 334 Absorbed by Shields . | . . . . . . . Redirected to Shielding 44 | . . 4 34 6 . . Core Remaining (%) 63 | 100 . 86 . 3 . . Volleys Fired 245 | . 10 5 63 21 125 21 Largest 2 | . 2 2 2 2 2 2 Hottest 121 | . 70 70 79 79 96 121 Shots Fired 406 | . 20 10 113 42 183 38 Gun 353 | . 20 10 112 42 131 38 Cannon 44 | . . . . . 44 . Launcher 9 | . . . 1 . 8 . Special . | . . . . . . . Kinetic 200 | . 10 5 82 21 73 9 Thermal 180 | . 10 5 30 21 102 12 Explosive 9 | . . . 1 . 8 . Electromagnetic 17 | . . . . . . 17 Robot Hit Streak 10 | . 2 2 10 5 10 8 Robot Miss Streak 6 | . 4 2 6 4 6 2 Penetration Max . | . . . . . . . Secondary Targets 5 | . 1 . 1 1 1 1 Max Gunslinging Chain 1 | . 1 . 1 1 1 1 Shots Hit Robots 244 | . 7 4 71 23 110 29 Core Hits 100 | . 2 2 30 9 47 10 Critical Kills . | . . . . . . . Critical Parts Destroyed . | . . . . . . . Critical Strikes 16 | . . . 2 6 7 1 Burn 15 | . . . 2 6 6 1 Blast 1 | . . . . . 1 . Melee Attacks . | . . . . . . . Impact . | . . . . . . . Slashing . | . . . . . . . Piercing . | . . . . . . . Sneak Attacks . | . . . . . . . Combat Hostiles . | . . . . . . . Follow-up Attacks . | . . . . . . . Damage Inflicted 4458 | . 93 48 1000 406 2455 456 Guns 3261 | . 93 48 1000 406 1259 455 Cannons 793 | . . . . . 793 . Explosions 403 | . . . . . 403 . Melee . | . . . . . . . Ramming 1 | . . . . . . 1 Kinetic 2213 | . 56 23 783 205 1074 72 Thermal 1582 | . 37 25 217 201 978 124 Explosive 403 | . . . . . 403 . Electromagnetic 259 | . . . . . . 259 Impact . | . . . . . . . Slashing . | . . . . . . . Piercing . | . . . . . . . Highest Corruption 7 | . . . 5 5 1 7 Average Corruption 3 | . . . 5 5 1 4 Corruption Purged . | . . . . . . . Corruption Blocked . | . . . . . . . Effects 20 | . . . 6 3 4 7 Message Errors 9 | . . . 2 1 3 3 Matter Fused 4 | . . . 1 2 1 . Heat Flow Errors 3 | . . . . . . 3 Energy Discharges 2 | . . . 1 . . 1 Parts Rejected 1 | . . . 1 . . . Data Loss (minor) 1 | . . . 1 . . . Overload Shots . | . . . . . . . Overflow Damage 13 | . . . . . 13 . Projectiles 13 | . . . . . 13 . Explosions . | . . . . . . . Melee . | . . . . . . . Knockbacks 3 | . . . . . 3 . Impact . | . . . . . . . Kinetic 3 | . . . . . 3 . Secondary . | . . . . . . . Self-Inflicted Damage . | . . . . . . . Shots . | . . . . . . . Rammed . | . . . . . . . Targets Rammed 1 | . . . . . . 1 Kicked 1 | . . . . . . 1 Crushed . | . . . . . . . Highest Temperature 577 | . 27 27 66 . 438 577 Average Temperature 137 | . 10 14 17 . 146 202 Received Heat Transfer 1422 | . . . 312 12 783 315 Effects 28 | . . . . . 10 18 Shutdowns 5 | . . . . . 3 2 Energy Bleed 3 | . . . . . 2 1 Interference 3 | . . . . . 3 . Matter Decay 5 | . . . . . 1 4 Short Circuit 2 | . . . . . 1 1 Damage (minor) 1 | . . . . . . 1 Damage (major) 7 | . . . . . . 7 Damage (core) 2 | . . . . . . 2 Siege Activations . | . . . . . . . Martial Activations . | . . . . . . . Shielding Activations . | . . . . . . . Robots Disrupted . | . . . . . . . Combat Hostiles . | . . . . . . . Robots Corrupted . | . . . . . . . Combat Hostiles . | . . . . . . . Parts Fried 1 | . . . . . . 1 Impact Corruptions . | . . . . . . . Robots Melted . | . . . . . . . Combat Hostiles . | . . . . . . . Parts Melted 7 | . . . 1 3 3 . Heat Transferred 5106 | . 111 74 740 962 2849 370 Parts Sabotaged . | . . . . . . . Parts Stolen . | . . . . . . . Parts Stripped . | . . . . . . . Power Chain Reactions . | . . . . . . . Alert | -11 -10 -10 -9 -9 -8 -8 ------- Run | Yrd Mat Min Mat Min Mat Sto Maximum Alert Level 1 | . . . 1 1 1 . Low Security (%) 87 | 100 100 100 76 90 79 100 Level 1 12 | . . . 23 9 20 . Level 2 . | . . . . . . . Level 3 . | . . . . . . . Level 4 . | . . . . . . . Level 5 . | . . . . . . . High Security . | . . . . . . . Max Security . | . . . . . . . Peak Influence 261 | . 20 20 261 201 246 60 Initial 91 | . . . . 91 74 35 Average 81 | . 3 1 108 126 146 17 Influence Increases 1481 | . 35 40 497 190 554 165 Destroy 0b10 Robot/C 880 | . 20 20 300 120 320 100 Destroy 0b10 Robot/NC 80 | . 5 5 20 5 40 5 Destroy Leader 186 | . 2 . 82 20 50 32 Allied During Kill 23 | . . . . . . 23 Successful Hack 31 | . 8 . 10 . 8 5 Disable Machine 105 | . . 15 . . 90 . Destroy Structure 56 | . . . 10 . 46 . Lose Combat Pursuer 120 | . . . 75 45 . . Influence Decreases 1465 | . 35 40 261 235 659 235 Entered New Map 313 | . . . . 145 117 51 Time Decay 865 | . 28 40 211 80 362 144 Lost Part 287 | . 7 . 50 10 180 40 Squads Dispatched 5 | . 1 . 1 1 1 1 Investigation 1 | . . . . 1 . . Extermination . | . . . . . . . Reinforcement 4 | . 1 . 1 . 1 1 Assault . | . . . . . . . Garrison . | . . . . . . . Intercept . | . . . . . . . Searches Triggered . | . . . . . . . Construction Impeded 1 | . . . . . 1 . Haulers Reinforced . | . . . . . . . Active Scanning Responses . | . . . . . . . Cargo Convoy Interrupts . | . . . . . . . Stealth | -11 -10 -10 -9 -9 -8 -8 --------- Run | Yrd Mat Min Mat Min Mat Sto Distress Signals 3 | . 1 . . . 1 1 Communications Jammed . | . . . . . . . Distress Signals . | . . . . . . . Times Spotted 78 | . 7 2 27 9 24 9 Peak Tracking Total 10 | . 6 2 10 4 6 4 Tactical Retreats 5 | . . . 4 1 . . Traps | -11 -10 -10 -9 -9 -8 -8 ------- Run | Yrd Mat Min Mat Min Mat Sto Traps Triggered 2 | . . . . . . 2 Indirectly . | . . . . . . . Trap Hack Attempts . | . . . . . . . Triggered . | . . . . . . . Disarmed . | . . . . . . . Reprogrammed . | . . . . . . . Reused . | . . . . . . . Traps Extracted . | . . . . . . . Installed . | . . . . . . . Triggered . | . . . . . . . Machines | -11 -10 -10 -9 -9 -8 -8 ---------- Run | Yrd Mat Min Mat Min Mat Sto Machines Disabled 7 | . . 1 . . 6 . Max in Single Turn 1 | . . 1 . . 1 . Machines Repaired . | . . . . . . . Machines Dismantled . | . . . . . . . Machines Sabotaged . | . . . . . . . Overloaded Fab Kills . | . . . . . . . Hacking | -11 -10 -10 -9 -9 -8 -8 --------- Run | Yrd Mat Min Mat Min Mat Sto Machines Accessed 8 | . 1 . 2 1 1 3 Terminals 7 | . 1 . 2 . 1 3 Fabricators . | . . . . . . . Repair Stations . | . . . . . . . Recycling Units . | . . . . . . . Scanalyzers . | . . . . . . . Garrison Access . | . . . . . . . Total Hacks 14 | . 1 . 4 1 1 7 Successful 9 | . 1 . 3 1 1 3 Failed 5 | . . . 1 . . 4 Catastrophic 1 | . . . . . . 1 Database Lockouts . | . . . . . . . Manual 5 | . 1 . 1 . 1 2 Terminals 13 | . 1 . 4 . 1 7 Fabricators . | . . . . . . . Repair Stations . | . . . . . . . Recycling Units . | . . . . . . . Scanalyzers . | . . . . . . . Garrison Access . | . . . . . . . Terminal Hacks 8 | . 1 . 3 1 1 2 Open Door 2 | . . . . 1 . 1 Branch Access Points 2 | . 1 . . . 1 . Dispatch Records 1 | . . . 1 . . . Transport Status 1 | . . . 1 . . . Hauler Manifests 1 | . . . 1 . . . Zone Layout 1 | . . . . . . 1 Fabricator Hacks . | . . . . . . . Repair Station Hacks . | . . . . . . . Recycling Unit Hacks . | . . . . . . . Scanalyzer . | . . . . . . . Garrison Access Hacks . | . . . . . . . Unauthorized Hacks 1 | . . . . . . 1 Terminals 1 | . . . . . . 1 Botnet 1 | . . . . . . 1 Fabricators . | . . . . . . . Repair Stations . | . . . . . . . Recycling Units . | . . . . . . . Scanalyzers . | . . . . . . . Garrison Access . | . . . . . . . Data Cores Recovered . | . . . . . . . Used . | . . . . . . . Hacking Detections 2 | . . . 1 . . 1 Full Trace Events 1 | . . . . . . 1 Feedback Events . | . . . . . . . Feedback Blocked . | . . . . . . . Robot Schematics Acquired . | . . . . . . . Robots Built . | . . . . . . . Authchips . | . . . . . . . Time . | . . . . . . . Total Robot Build Rating . | . . . . . . . Part Schematics Acquired . | . . . . . . . Parts Built . | . . . . . . . Authchips . | . . . . . . . Time . | . . . . . . . Total Part Build Rating . | . . . . . . . Parts Repaired . | . . . . . . . Time . | . . . . . . . Parts Recycled . | . . . . . . . Recycled Matter . | . . . . . . . Retrieved Matter . | . . . . . . . Retrieved Components . | . . . . . . . Parts Scanalyzed . | . . . . . . . Part Schematics Acquired . | . . . . . . . Parts Damaged . | . . . . . . . Bothacking | -11 -10 -10 -9 -9 -8 -8 ------------ Run | Yrd Mat Min Mat Min Mat Sto Used RIF Installer . | . . . . . . . Robots Hacked . | . . . . . . . Non-combat . | . . . . . . . Combat . | . . . . . . . Robot Hacks Applied . | . . . . . . . Relay Couplers Released . | . . . . . . . Fabnet Peak Effective % . | . . . . . . . Robots Rewired . | . . . . . . . Allies Hacked . | . . . . . . . Hacks Repelled . | . . . . . . . Allies | -11 -10 -10 -9 -9 -8 -8 -------- Run | Yrd Mat Min Mat Min Mat Sto Total Allies 10 | . . . . . . 10 Largest Group 10 | . . . . . . 10 Highest-Rated Group 173 | . . . . . . 173 Highest-Rated Ally 29 | . . . . . . 29 Total Orders . | . . . . . . . Ally Attacks 13 | . . . . . . 13 Total Damage 190 | . . . . . . 190 Kills 2 | . . . . . . 2 Allies Corrupted . | . . . . . . . Allies Melted . | . . . . . . . Intel | -11 -10 -10 -9 -9 -8 -8 ------- Run | Yrd Mat Min Mat Min Mat Sto Active Infowar (turns) 627 | . . . . . 178 449 Optics 627 | . . . . . 178 449 Robot Analysis Total . | . . . . . . . Derelict Logs Recovered 2 | . . 2 . . . . Drone Launches . | . . . . . . . Drone Recoveries . | . . . . . . . Exploration | -11 -10 -10 -9 -9 -8 -8 ------------- Run | Yrd Mat Min Mat Min Mat Sto Turns Passed 2669 | 61 163 400 591 177 828 449 Spaces Moved 1245 | 51 130 337 273 69 249 136 Core 32 | 14 . . 11 . 7 . Treads 289 | . . . 55 69 68 97 Legs 321 | . . . 108 . 174 39 Wheels 603 | 37 130 337 99 . . . Hover . | . . . . . . . Flight . | . . . . . . . Fastest Speed 50 | 50 100 90 90 160 120 120 Average Speed 132 | 86 100 98 121 160 167 206 Slowest Speed 350 | 100 100 100 350 160 350 240 Overloaded Moves . | . . . . . . . Propulsion Burnouts . | . . . . . . . Robots Hopped . | . . . . . . . Potential Cave-ins . | . . . . . . . Cave-ins Triggered . | . . . . . . . Exploration Rate (%) 26 | 4 35 63 30 13 17 23 Regions Visited 6 Branch Regions 3 Pre-discovered Areas . | . . . . . . . Known Exits Taken 3 | . 1 . 1 . 1 . Unknown Exits Taken 3 | 1 . 1 . 1 . . Scrap Searched 1 | . . 1 . . . . Spaces Dug 7 | . . . 7 . . . Terrain Destroyed 61 | . . . 7 . 54 . Melee . | . . . . . . . Projectile 9 | . . . . . 9 . AOE 52 | . . . 7 . 45 . Terrain Rammed . | . . . . . . . Walls Destroyed . | . . . . . . . Machines Disabled . | . . . . . . . Actions | -11 -10 -10 -9 -9 -8 -8 --------- Run | Yrd Mat Min Mat Min Mat Sto Total 1860 | 67 142 394 419 94 476 268 Wait 233 | 5 . 45 31 . 60 92 Move 1239 | 50 129 336 272 68 248 136 Hop . | . . . . . . . Pick Up 64 | 6 2 4 23 2 20 7 Fast Attach 1 | . . . . 1 . . Attach 53 | 6 . 2 16 . 19 10 Detach . | . . . . . . . Swap 14 | . 1 1 8 1 3 . Drop 10 | . . 1 6 1 1 1 Fire 245 | . 10 5 63 21 125 21 Melee . | . . . . . . . Ram . | . . . . . . . Kick 1 | . . . . . . 1 Crush . | . . . . . . . Escape Stasis . | . . . . . . . Rewire . | . . . . . . . Trap . | . . . . . . . Miscellaneous . | . . . . . . . Route ------- -11/Scrapyard -10/Materials (discovered 3 exits: *Mat / *Min x2) -10/Mines (discovered 2 exits: *Mat x2) -9/Materials (discovered 2 exits: *Min x2) -9/Mines -8/Materials (discovered 2 exits: *Sto x2) -8/Storage History --------- Turn | Location | Event 8 | -11/Scrapyard | Discovered new exit (range 15) 62 | -11/Scrapyard | Entered Materials 130 | -10/Materials | Identified exit to Mines 171 | -10/Materials | Discovered new exit (range 8) 225 | -10/Materials | Entered Mines 259 | -10/Mines | Met a Derelict bent on vengeance 307 | -10/Mines | Build established: Mutant 415 | -10/Mines | Discovered new exit (range 8) 416 | -10/Mines | Discovered new exit (range 13) 565 | -10/Mines | Learned Materials machine intel 625 | -10/Mines | Entered Materials 625 | -9/Materials | Evolved 2 slots: Utility x2 626 | -9/Materials | Identified exit to Mines 627 | -9/Materials | Loaded intel: 66 machine locations 785 | -9/Materials | Core integrity fell below 50% 829 | -9/Materials | Lost 7 parts (1p2n2u2w) 882 | -9/Materials | Core integrity fell below 20% 1132 | -9/Materials | Build established: Scavenger-Mutant 1216 | -9/Materials | Entered Mines 1270 | -9/Mines | Discovered new exit (range 11) 1275 | -9/Mines | Met a Derelict shopkeep closing up shop 1393 | -9/Mines | Entered Materials 1393 | -8/Materials | Evolved 2 slots: Power x1, Propulsion x1 1436 | -8/Materials | Discovered new exit (range 16) 1650 | -8/Materials | Lost 6 parts (1p1n1u3w) 1822 | -8/Materials | Lost 6 parts (1p1n1u3w) 2110 | -8/Materials | Identified exit to Storage 2221 | -8/Materials | Entered Storage 2307 | -8/Storage | Core integrity fell below 50% 2328 | -8/Storage | Core integrity fell below 20% 2375 | -8/Storage | Lost 7 parts (2p1n4w) 2504 | -8/Storage | Assisted by bots powering up and referring to "LRC-V3" 2670 | -8/Storage | Destroyed by L-31 Rogue with Katana Last Messages --------------- Y-45 Defender suffers critical hit (Burn). Trooper 3e destroyed. YI System corrupted: Energy discharge (-77). K-01 Serf collects debris. ALERT: Hostiles spotted, dispatching reinforcements to Terminal S007. System corrupted: Heat flow error (+167). R#WWRKF D2T/9SBYBWPY VYLHJMZY|6RVD W-25 Informer destroyed. Triggered Ambush Trap. L-31 Rogue emerges from a hatch in the floor. S-10 Pest emerges from a hatch in the floor. Map ----- +----------------------------------------------------+ | ???????????????????????????????????????? | | ???????????????????????????????????????? | | ???????????????????????????????????????? | | ???????????????????????????????????????? | | ???????????????????????????????????????? | | ???????????????????????????????????????? | | ???????????????????????????????????????? | | ???????????????????????????????????????? | | ???????????????????????????????????????? | | ???????????????????????????????????????? | | ???????????????????????????????????????? | | ???????????????????????????????????????? | | ???????????????????????????????????????? | | ???????????????????????????????????????? | | ????#??????????????????????????????????? | | ????# ?????????????????????????????????? | | ????# ?????????????????????????????????? | | ????# ##+#####?????????????????????????? | | ????# # #?????????????????????????? | | ????# # """" #?????????????????????????? | | ????# # """" #?????????????????????????? | | ????# # """" #?????????????????????????? | | ????# ? """" #?????????????????????????? | | ????# ??? #?????????????????????????? | | ????# #####/######+#######?????????????? | | ????#% ggggr gs@l ????? | | ????# g######## ????? | | ????# #????????? ????? | | ????# #?###??###############+####???? | | ????# #?# ######??????????## #???? | | ????# ### #??????????## T???? | | ????# # #??????????###"""#???? | | ????# # #??????????## ???? | | ????# # """ #??????????## ???? | | ????# + """ #??????????## ???? | | ??######## # """ #??????????## ???? | | ??# # ########??????????#######???? | | ??# %/ #?????????????????#######???? | | ??# !! # #??????????????????# ???? | | ??# !! # #??????????????????# ???? | | ??# #%#???#######????????# ???? | | ??# # #???# #????????#""" ???? | | ??##+##### #???# #????????#""" ???? | | ?????#???# #???# T#????????#""" ???? | | ?????#???# #???## ##????????# ???? | | ?????##### ######+############# ???? | | ???# ## T #####+#???? | | ???# ##+##### ## // # ???? | | ???# # ## ## / / ???? | | ???# # """ ## ## # ???? | +----------------------------------------------------+ Best States ------------- Heat Dissipation 45 Energy Generation 27 Energy Capacity 460 Matter Stores 450 Matter Capacity 450 Sight Range 20 Terrain Scan Density 10 Additional Mass Support 9 Armor Coverage 150 Core Shielding 20 Weapon Shielding 33 Evasion (%) 55 Recoil Reduction 3 Kinecelleration 30 Item Schematics ----------------- None Robot Schematics ------------------ None Fabricated ------------ Nothing Repaired ---------- Nothing Alien Tech Used ----------------- None Achievements -------------- None Challenges ------------ None Game ------ Seed ZioniteDecoderEngine Manual? 0 Play Time 00:23:35 Cumulative 27.7 hours Start 2025.09.21 @ 02:26:03 End 2025.09.21 @ 02:46:33 Sessions 1 Manual Loads 0 Difficulty Rogue Special Mode None Game No. 47 Rogue 26 Adventurer 21 Explorer 0 Win Type - Total 1 Types 0/0/0/0/0/0/0/1/0/0 Lore% 50 Gallery% 33 Achievement% 38 Wizard Run 0 Options --------- Layout 1 ASCII 0 Keyboard 0 Movement Mouse Keybinds 0 Fullscreen 2 Font 24/Smallcaps Map View 50x35 Zoom Use 0% Tactical HUD 0 Map Filters NONE Filters NONE Steam 1 RUN: ec8fbc33-beb7-4cc2-8db4-792aff7345c2